[Event "Early-Titled-Tuesday-Blitz-February-06-2024"]
[Site "Chess.com"]
[Date "2024.02.06"]
[Round "3"]
[White "Ezov"]
[Black "SargissyanSargis"]
[Result "0-1"]
[WhiteElo "2179"]
[BlackElo "2397"]
[TimeControl "180+1"]
[EndTime "8:28:16 PST"]
[Termination "SargissyanSargis won by resignation"]

1. d4 {[%clk 0:03:00.9]} 1... Nf6 {[%clk 0:02:59.8]} 2. Nc3 {[%clk 0:03:00]}
2... g6 {[%clk 0:03:00.4]} 3. Bf4 {[%clk 0:02:58.9]} 3... d5 {[%clk 0:02:54.2]}
4. h4 {[%clk 0:02:58]} 4... h5 {[%clk 0:02:50]} 5. Qd2 {[%clk 0:02:57.3]} 5...
Bg7 {[%clk 0:02:33.7]} 6. O-O-O {[%clk 0:02:55.5]} 6... Nbd7 {[%clk 0:02:32.7]}
7. f3 {[%clk 0:02:54.4]} 7... a6 {[%clk 0:02:28]} 8. e4 {[%clk 0:02:52.5]} 8...
Nb6 {[%clk 0:02:08.1]} 9. Nh3 {[%clk 0:02:48.2]} 9... Bxh3 {[%clk 0:01:53.6]}
10. gxh3 {[%clk 0:02:43.7]} 10... e6 {[%clk 0:01:11.9]} 11. Bg5 {[%clk
0:02:31.4]} 11... Qd7 {[%clk 0:01:08.8]} 12. e5 {[%clk 0:02:28.8]} 12... Ng8
{[%clk 0:01:07.4]} 13. f4 {[%clk 0:02:02.7]} 13... Ne7 {[%clk 0:01:07.9]} 14.
Bd3 {[%clk 0:01:59.5]} 14... Rc8 {[%clk 0:01:06.6]} 15. Kb1 {[%clk 0:01:48.5]}
15... c5 {[%clk 0:01:05]} 16. dxc5 {[%clk 0:01:32.6]} 16... Rxc5 {[%clk
0:01:05]} 17. Qf2 {[%clk 0:01:20.9]} 17... Qc7 {[%clk 0:00:52.3]} 18. Rhe1
{[%clk 0:01:11.1]} 18... Nc4 {[%clk 0:00:26.9]} 19. Bxc4 {[%clk 0:01:06.8]}
19... Rxc4 {[%clk 0:00:26.8]} 20. Rd2 {[%clk 0:00:53]} 20... Nf5 {[%clk
0:00:25]} 21. Qa7 {[%clk 0:00:49.4]} 21... O-O {[%clk 0:00:24.5]} 22. Rc1 {[%clk
0:00:29.2]} 22... Rc8 {[%clk 0:00:24]} 23. Qf2 {[%clk 0:00:25.7]} 23... Bf8
{[%clk 0:00:22.1]} 24. Nd1 {[%clk 0:00:22.9]} 24... d4 {[%clk 0:00:20]} 25. c3
{[%clk 0:00:20.5]} 25... b5 {[%clk 0:00:15.8]} 26. Qe2 {[%clk 0:00:17.9]} 26...
b4 {[%clk 0:00:15.7]} 27. b3 {[%clk 0:00:16.4]} 27... Rxc3 {[%clk 0:00:15.3]}
28. Nxc3 {[%clk 0:00:14.3]} 28... bxc3 {[%clk 0:00:15.8]} 29. Rdc2 {[%clk
0:00:13.7]} 29... Ba3 {[%clk 0:00:13.7]} 30. Qd3 {[%clk 0:00:13.1]} 30... Bxc1
{[%clk 0:00:13.1]} 31. Kxc1 {[%clk 0:00:14]} 31... a5 {[%clk 0:00:13.1]} 32. Bf6
{[%clk 0:00:13.2]} 32... a4 {[%clk 0:00:12.6]} 33. Kb1 {[%clk 0:00:10.7]} 33...
axb3 {[%clk 0:00:12.4]} 34. axb3 {[%clk 0:00:11.6]} 34... Rb8 {[%clk 0:00:13.2]}
35. Kc1 {[%clk 0:00:08.5]} 35... Rxb3 {[%clk 0:00:12.6]} 36. Kd1 {[%clk
0:00:08.2]} 36... Ne3+ {[%clk 0:00:11.1]} 37. Ke2 {[%clk 0:00:07.2]} 37... Nxc2
{[%clk 0:00:11.3]} 38. Qxc2 {[%clk 0:00:08.1]} 38... Rb2 {[%clk 0:00:11.5]} 39.
Kd3 {[%clk 0:00:06.7]} 39... Rxc2 {[%clk 0:00:11.9]} 0-1

[Event "Early-Titled-Tuesday-Blitz-February-06-2024"]
[Site "Chess.com"]
[Date "2024.02.06"]
[Round "3"]
[White "mitrabhaa"]
[Black "traviscottofficial"]
[Result "1-0"]
[WhiteElo "2919"]
[BlackElo "2702"]
[TimeControl "180+1"]
[EndTime "8:28:17 PST"]
[Termination "mitrabhaa won by resignation"]

1. d4 {[%clk 0:03:00.9]} 1... Nf6 {[%clk 0:02:59]} 2. Nf3 {[%clk 0:03:00]} 2...
g6 {[%clk 0:02:57.8]} 3. g3 {[%clk 0:02:58.9]} 3... Bg7 {[%clk 0:02:55.1]} 4.
Bg2 {[%clk 0:02:59.5]} 4... O-O {[%clk 0:02:55.7]} 5. O-O {[%clk 0:03:00.4]}
5... d6 {[%clk 0:02:55.9]} 6. c4 {[%clk 0:02:59.7]} 6... c6 {[%clk 0:02:56.1]}
7. Nc3 {[%clk 0:02:58.4]} 7... Qb6 {[%clk 0:02:56.5]} 8. e4 {[%clk 0:02:55.4]}
8... Bg4 {[%clk 0:02:51.3]} 9. b3 {[%clk 0:02:48.9]} 9... Qa5 {[%clk 0:02:40.4]}
10. Bb2 {[%clk 0:02:39.2]} 10... Qh5 {[%clk 0:02:37.8]} 11. Qd3 {[%clk
0:02:34.3]} 11... c5 {[%clk 0:02:31.2]} 12. d5 {[%clk 0:02:29.6]} 12... Nbd7
{[%clk 0:02:26.5]} 13. Ne2 {[%clk 0:02:21.5]} 13... Bh6 {[%clk 0:02:10.4]} 14.
Kh1 {[%clk 0:02:07.6]} 14... Bh3 {[%clk 0:01:38.8]} 15. Bxh3 {[%clk 0:02:02.5]}
15... Qxh3 {[%clk 0:01:38.5]} 16. Neg1 {[%clk 0:02:01.9]} 16... Qh5 {[%clk
0:01:31.3]} 17. Kg2 {[%clk 0:02:02.3]} 17... Bg7 {[%clk 0:01:22.3]} 18. h3
{[%clk 0:01:57.1]} 18... g5 {[%clk 0:01:09.7]} 19. g4 {[%clk 0:01:51.8]} 19...
Qg6 {[%clk 0:01:09.4]} 20. Rfe1 {[%clk 0:01:45.8]} 20... Nxd5 {[%clk 0:01:06.3]}
21. Qxd5 {[%clk 0:01:40.8]} 21... Bxb2 {[%clk 0:01:06.5]} 22. Rad1 {[%clk
0:01:41.3]} 22... Rab8 {[%clk 0:01:00.4]} 23. Qxg5 {[%clk 0:01:38.6]} 23... Qxg5
{[%clk 0:00:55.5]} 24. Nxg5 {[%clk 0:01:39.5]} 24... b5 {[%clk 0:00:54.5]} 25.
cxb5 {[%clk 0:01:36.2]} 25... Rxb5 {[%clk 0:00:53.3]} 26. f4 {[%clk 0:01:36.5]}
26... Bc3 {[%clk 0:00:44]} 27. Re2 {[%clk 0:01:35.1]} 27... Nb8 {[%clk
0:00:35.3]} 28. e5 {[%clk 0:01:31]} 28... dxe5 {[%clk 0:00:34.4]} 29. fxe5
{[%clk 0:01:31.9]} 29... Nc6 {[%clk 0:00:33.1]} 30. e6 {[%clk 0:01:30.6]} 30...
fxe6 {[%clk 0:00:30.5]} 31. Nxe6 {[%clk 0:01:29.6]} 31... Rf6 {[%clk 0:00:24.5]}
32. Nf3 {[%clk 0:01:26.7]} 32... h6 {[%clk 0:00:19.7]} 33. Rd7 {[%clk
0:01:23.7]} 33... Kf7 {[%clk 0:00:17.6]} 34. Rc7 {[%clk 0:01:13.2]} 34... Rb6
{[%clk 0:00:14.7]} 35. Nxc5 {[%clk 0:01:09.8]} 35... Bb4 {[%clk 0:00:14.4]} 36.
Nd7 {[%clk 0:01:00.9]} 36... Rxf3 {[%clk 0:00:12.4]} 37. Nxb6 {[%clk 0:00:58.2]}
37... Nd4 {[%clk 0:00:09.8]} 38. Nd5 {[%clk 0:00:55.2]} 38... Bd6 {[%clk
0:00:08.6]} 39. Rc4 {[%clk 0:00:52.7]} 39... Rg3+ {[%clk 0:00:08.2]} 40. Kf2
{[%clk 0:00:51.8]} 40... Nxe2 {[%clk 0:00:09.1]} 41. Kxe2 {[%clk 0:00:52.7]}
41... Rxh3 {[%clk 0:00:10]} 42. Ra4 {[%clk 0:00:52.6]} 42... Rh2+ {[%clk
0:00:10.5]} 43. Kf3 {[%clk 0:00:52.5]} 43... Ke6 {[%clk 0:00:11.2]} 44. Nf4+
{[%clk 0:00:51.6]} 44... Kf6 {[%clk 0:00:11.7]} 45. Rxa7 {[%clk 0:00:47.6]}
45... Kg5 {[%clk 0:00:12.2]} 46. Ra5+ {[%clk 0:00:46.3]} 46... e5 {[%clk
0:00:12.1]} 47. Nd3 {[%clk 0:00:40.9]} 47... Rh3+ {[%clk 0:00:11.8]} 48. Ke4
{[%clk 0:00:41.4]} 48... Kxg4 {[%clk 0:00:11.9]} 49. Ra6 {[%clk 0:00:40.1]}
49... Bf8 {[%clk 0:00:06.9]} 50. Nf2+ {[%clk 0:00:40]} 1-0

[Event "Early-Titled-Tuesday-Blitz-February-06-2024"]
[Site "Chess.com"]
[Date "2024.02.06"]
[Round "3"]
[White "Siemba"]
[Black "wyharga"]
[Result "0-1"]
[WhiteElo "2516"]
[BlackElo "2475"]
[TimeControl "180+1"]
[EndTime "8:28:19 PST"]
[Termination "wyharga won by resignation"]

1. e4 {[%clk 0:02:58.6]} 1... c5 {[%clk 0:02:59.3]} 2. c3 {[%clk 0:02:55.1]}
2... Nf6 {[%clk 0:02:58]} 3. e5 {[%clk 0:02:52.3]} 3... Nd5 {[%clk 0:02:58.6]}
4. Nf3 {[%clk 0:02:52.8]} 4... e6 {[%clk 0:02:57.6]} 5. d4 {[%clk 0:02:51.4]}
5... cxd4 {[%clk 0:02:56.6]} 6. cxd4 {[%clk 0:02:52.3]} 6... b6 {[%clk
0:02:56.2]} 7. Nc3 {[%clk 0:02:51.8]} 7... Nxc3 {[%clk 0:02:56.1]} 8. bxc3
{[%clk 0:02:52]} 8... Qc7 {[%clk 0:02:56.2]} 9. Bd2 {[%clk 0:02:52.4]} 9... Be7
{[%clk 0:02:55.1]} 10. Bd3 {[%clk 0:02:52.9]} 10... Ba6 {[%clk 0:02:55.2]} 11.
Bxa6 {[%clk 0:02:48.8]} 11... Nxa6 {[%clk 0:02:55.4]} 12. O-O {[%clk 0:02:48.8]}
12... O-O {[%clk 0:02:54.2]} 13. Qe2 {[%clk 0:02:48.2]} 13... Qb7 {[%clk
0:02:53.4]} 14. Bg5 {[%clk 0:02:45.1]} 14... f6 {[%clk 0:02:16.4]} 15. exf6
{[%clk 0:02:43.1]} 15... Bxf6 {[%clk 0:02:16.7]} 16. Bxf6 {[%clk 0:02:38.9]}
16... Rxf6 {[%clk 0:02:11.3]} 17. Rad1 {[%clk 0:02:37.7]} 17... Nc7 {[%clk
0:02:06.1]} 18. c4 {[%clk 0:02:25.5]} 18... d6 {[%clk 0:01:55.6]} 19. Rfe1
{[%clk 0:02:16]} 19... Raf8 {[%clk 0:01:54]} 20. d5 {[%clk 0:02:13]} 20... e5
{[%clk 0:01:48.8]} 21. Qc2 {[%clk 0:01:55.7]} 21... h6 {[%clk 0:01:40.9]} 22.
Re3 {[%clk 0:01:54]} 22... Na6 {[%clk 0:01:40]} 23. Rde1 {[%clk 0:01:50.6]}
23... Nc5 {[%clk 0:01:39.8]} 24. h3 {[%clk 0:01:31.2]} 24... Qf7 {[%clk
0:01:39.5]} 25. R1e2 {[%clk 0:01:27.6]} 25... Rf4 {[%clk 0:01:19.5]} 26. Kh2
{[%clk 0:01:13.4]} 26... Qh5 {[%clk 0:01:11.4]} 27. Kg1 {[%clk 0:01:05.8]} 27...
Qe8 {[%clk 0:00:46.4]} 28. Ra3 {[%clk 0:01:05.2]} 28... R8f7 {[%clk 0:00:43.2]}
29. Qg6 {[%clk 0:00:56.8]} 29... R4f6 {[%clk 0:00:41.3]} 30. Qh5 {[%clk
0:00:54.2]} 30... Qf8 {[%clk 0:00:40.2]} 31. Qh4 {[%clk 0:00:37.5]} 31... Rf4
{[%clk 0:00:39.3]} 32. Qg3 {[%clk 0:00:37.6]} 32... Ne4 {[%clk 0:00:32.8]} 33.
Qg6 {[%clk 0:00:34.5]} 33... R7f6 {[%clk 0:00:32.8]} 34. Qxe4 {[%clk 0:00:25.8]}
34... Rxe4 {[%clk 0:00:32.3]} 35. Rxe4 {[%clk 0:00:26.7]} 35... Rf4 {[%clk
0:00:32.6]} 36. Ree3 {[%clk 0:00:21.5]} 36... Qf7 {[%clk 0:00:24.7]} 37. Nd2
{[%clk 0:00:13.3]} 37... Rxf2 {[%clk 0:00:23.4]} 38. Ne4 {[%clk 0:00:14]} 38...
Rf1+ {[%clk 0:00:23.6]} 39. Kh2 {[%clk 0:00:14.5]} 39... Qf4+ {[%clk 0:00:23.7]}
40. g3 {[%clk 0:00:15.1]} 40... Qf8 {[%clk 0:00:20.5]} 41. Kg2 {[%clk
0:00:11.6]} 41... Rc1 {[%clk 0:00:17.4]} 42. Rf3 {[%clk 0:00:09.7]} 42... Qe7
{[%clk 0:00:17.7]} 43. Ra4 {[%clk 0:00:05.5]} 43... Kh7 {[%clk 0:00:16.3]} 44.
Rf2 {[%clk 0:00:04.5]} 44... Re1 {[%clk 0:00:14.3]} 45. Nd2 {[%clk 0:00:03.9]}
45... e4 {[%clk 0:00:13.9]} 46. Rf1 {[%clk 0:00:03.1]} 46... Re2+ {[%clk
0:00:13.3]} 47. Rf2 {[%clk 0:00:02.9]} 47... Rxf2+ {[%clk 0:00:13.6]} 48. Kxf2
{[%clk 0:00:03.8]} 48... e3+ {[%clk 0:00:14]} 0-1

[Event "Early-Titled-Tuesday-Blitz-February-06-2024"]
[Site "Chess.com"]
[Date "2024.02.06"]
[Round "3"]
[White "Jenia84"]
[Black "emeli_chess"]
[Result "1-0"]
[WhiteElo "2302"]
[BlackElo "2437"]
[TimeControl "180+1"]
[EndTime "8:28:20 PST"]
[Termination "Jenia84 won on time"]

1. e4 {[%clk 0:02:56.8]} 1... c5 {[%clk 0:02:58.3]} 2. Nf3 {[%clk 0:02:55.6]}
2... d6 {[%clk 0:02:58.4]} 3. d4 {[%clk 0:02:55.7]} 3... cxd4 {[%clk 0:02:58.7]}
4. Nxd4 {[%clk 0:02:55.9]} 4... Nf6 {[%clk 0:02:58.9]} 5. Nc3 {[%clk 0:02:52.2]}
5... a6 {[%clk 0:02:58.8]} 6. Be2 {[%clk 0:02:51.5]} 6... e6 {[%clk 0:02:57.8]}
7. Be3 {[%clk 0:02:50.7]} 7... Be7 {[%clk 0:02:56.6]} 8. Qd2 {[%clk 0:02:50.1]}
8... O-O {[%clk 0:02:55.8]} 9. g4 {[%clk 0:02:50]} 9... Qc7 {[%clk 0:02:50.9]}
10. g5 {[%clk 0:02:48.3]} 10... Nfd7 {[%clk 0:02:50.8]} 11. O-O-O {[%clk
0:02:47.6]} 11... b5 {[%clk 0:02:47.4]} 12. Kb1 {[%clk 0:02:42.7]} 12... Nb6
{[%clk 0:02:42.3]} 13. Ndxb5 {[%clk 0:02:24.7]} 13... axb5 {[%clk 0:02:39.6]}
14. Nxb5 {[%clk 0:02:24.8]} 14... Qc6 {[%clk 0:02:21.9]} 15. Nxd6 {[%clk
0:02:20.1]} 15... Bxd6 {[%clk 0:02:17.7]} 16. Qxd6 {[%clk 0:02:19.3]} 16... Qxd6
{[%clk 0:01:13.5]} 17. Rxd6 {[%clk 0:02:18.3]} 17... N6d7 {[%clk 0:01:12]} 18.
Rhd1 {[%clk 0:02:14.1]} 18... Ne5 {[%clk 0:00:51.7]} 19. f4 {[%clk 0:01:58.3]}
19... Ng6 {[%clk 0:00:43.8]} 20. Rd8 {[%clk 0:00:57.4]} 20... Nc6 {[%clk
0:00:36.7]} 21. Rxf8+ {[%clk 0:00:56.6]} 21... Nxf8 {[%clk 0:00:30.5]} 22. Bb5
{[%clk 0:00:56.1]} 22... Bb7 {[%clk 0:00:26.8]} 23. a4 {[%clk 0:00:53.5]} 23...
Na5 {[%clk 0:00:17.8]} 24. b4 {[%clk 0:00:49.3]} 24... Nc6 {[%clk 0:00:16.3]}
25. Bc5 {[%clk 0:00:42.3]} 25... Rd8 {[%clk 0:00:12.5]} 26. Rd3 {[%clk
0:00:27.5]} 26... Rxd3 {[%clk 0:00:10.1]} 27. cxd3 {[%clk 0:00:27]} 27... Nd7
{[%clk 0:00:09.7]} 28. Bd6 {[%clk 0:00:19.5]} 28... f6 {[%clk 0:00:09.8]} 29. h4
{[%clk 0:00:18.7]} 29... Kf7 {[%clk 0:00:09.5]} 30. a5 {[%clk 0:00:18.3]} 30...
e5 {[%clk 0:00:08]} 31. a6 {[%clk 0:00:18]} 31... Ba8 {[%clk 0:00:07.6]} 32. f5
{[%clk 0:00:18.1]} 32... fxg5 {[%clk 0:00:07]} 33. hxg5 {[%clk 0:00:18.1]} 33...
h5 {[%clk 0:00:07.3]} 34. Bc4+ {[%clk 0:00:14.2]} 34... Ke8 {[%clk 0:00:07]} 35.
b5 {[%clk 0:00:14.2]} 35... Na7 {[%clk 0:00:04.4]} 36. Bc7 {[%clk 0:00:07.3]}
36... Nc8 {[%clk 0:00:02.8]} 37. Be6 {[%clk 0:00:06.1]} 37... Ndb6 {[%clk
0:00:03]} 38. f6 {[%clk 0:00:04.8]} 38... gxf6 {[%clk 0:00:02.6]} 39. gxf6
{[%clk 0:00:05.4]} 39... h4 {[%clk 0:00:02.2]} 40. Kc2 {[%clk 0:00:02.3]} 1-0

[Event "Early-Titled-Tuesday-Blitz-February-06-2024"]
[Site "Chess.com"]
[Date "2024.02.06"]
[Round "3"]
[White "MNyuyu"]
[Black "Nasrin_Babayeva"]
[Result "1/2-1/2"]
[WhiteElo "2307"]
[BlackElo "1920"]
[TimeControl "180+1"]
[EndTime "8:28:20 PST"]
[Termination "Game drawn by repetition"]

1. d4 {[%clk 0:02:51.3]} 1... d6 {[%clk 0:02:57.3]} 2. Nf3 {[%clk 0:02:50.8]}
2... Bg4 {[%clk 0:02:55.6]} 3. c4 {[%clk 0:02:46.6]} 3... Bxf3 {[%clk 0:02:52]}
4. gxf3 {[%clk 0:02:46.1]} 4... e6 {[%clk 0:02:42.2]} 5. Nc3 {[%clk 0:02:46.5]}
5... Nd7 {[%clk 0:02:41]} 6. e4 {[%clk 0:02:47]} 6... Ngf6 {[%clk 0:02:39.9]} 7.
Rg1 {[%clk 0:02:45.6]} 7... Be7 {[%clk 0:02:35.5]} 8. f4 {[%clk 0:02:44.3]} 8...
O-O {[%clk 0:02:22.5]} 9. e5 {[%clk 0:02:43.7]} 9... dxe5 {[%clk 0:02:19]} 10.
fxe5 {[%clk 0:02:42.9]} 10... Ne8 {[%clk 0:02:17]} 11. Bd3 {[%clk 0:02:42.5]}
11... g6 {[%clk 0:02:08.8]} 12. Bh6 {[%clk 0:02:35.5]} 12... Ng7 {[%clk
0:02:06.3]} 13. Qe2 {[%clk 0:02:28.8]} 13... Bb4 {[%clk 0:01:56]} 14. Bd2 {[%clk
0:02:23.8]} 14... Qh4 {[%clk 0:01:50]} 15. Rg4 {[%clk 0:02:17.9]} 15... Qxh2
{[%clk 0:01:47.8]} 16. O-O-O {[%clk 0:02:18.4]} 16... c5 {[%clk 0:01:24.3]} 17.
a3 {[%clk 0:01:53.8]} 17... cxd4 {[%clk 0:01:16.4]} 18. axb4 {[%clk 0:01:51.5]}
18... dxc3 {[%clk 0:01:10]} 19. Bxc3 {[%clk 0:01:52.1]} 19... Rfd8 {[%clk
0:01:06.1]} 20. Rgg1 {[%clk 0:01:41.8]} 20... Qf4+ {[%clk 0:01:02.9]} 21. Kb1
{[%clk 0:01:39.4]} 21... Rac8 {[%clk 0:01:02.4]} 22. Rh1 {[%clk 0:01:23]} 22...
Nb6 {[%clk 0:00:59.6]} 23. b3 {[%clk 0:01:19]} 23... Rd7 {[%clk 0:00:55]} 24.
Bc2 {[%clk 0:01:01.7]} 24... Rcd8 {[%clk 0:00:53.5]} 25. Rxd7 {[%clk 0:00:52.9]}
25... Rxd7 {[%clk 0:00:54.4]} 26. Rd1 {[%clk 0:00:51.7]} 26... Nf5 {[%clk
0:00:45.7]} 27. Rxd7 {[%clk 0:00:47.5]} 27... Nxd7 {[%clk 0:00:46.6]} 28. Qd3
{[%clk 0:00:47.6]} 28... Nxe5 {[%clk 0:00:43.4]} 29. Qd8+ {[%clk 0:00:39.9]}
29... Kg7 {[%clk 0:00:43.6]} 30. Qc7 {[%clk 0:00:40.2]} 30... Kf6 {[%clk
0:00:38.6]} 31. Qd8+ {[%clk 0:00:38.2]} 31... Ne7 {[%clk 0:00:36.6]} 32. Qd6
{[%clk 0:00:34.4]} 32... Nc8 {[%clk 0:00:28.6]} 33. Qc7 {[%clk 0:00:30.8]} 33...
Ne7 {[%clk 0:00:26.8]} 34. b5 {[%clk 0:00:25.7]} 34... g5 {[%clk 0:00:22.1]} 35.
c5 {[%clk 0:00:23.4]} 35... Ng6 {[%clk 0:00:21]} 36. c6 {[%clk 0:00:20.5]} 36...
bxc6 {[%clk 0:00:19.1]} 37. bxc6 {[%clk 0:00:21.4]} 37... Qxf2 {[%clk
0:00:19.2]} 38. Kb2 {[%clk 0:00:20.7]} 38... Qc5 {[%clk 0:00:17.8]} 39. Qd8+
{[%clk 0:00:19.2]} 39... Ne7 {[%clk 0:00:16.3]} 40. c7 {[%clk 0:00:18.4]} 40...
g4 {[%clk 0:00:13.8]} 41. b4 {[%clk 0:00:14.8]} 41... Qc6 {[%clk 0:00:10.9]} 42.
Ba4 {[%clk 0:00:13.3]} 42... Qc4 {[%clk 0:00:10.2]} 43. Bd7 {[%clk 0:00:10.9]}
43... Qe2+ {[%clk 0:00:09]} 44. Ka3 {[%clk 0:00:10.3]} 44... Qa6+ {[%clk
0:00:08.8]} 45. Kb2 {[%clk 0:00:10.3]} 45... Qe2+ {[%clk 0:00:08.9]} 46. Kb3
{[%clk 0:00:10.5]} 46... Qc4+ {[%clk 0:00:09.1]} 47. Kb2 {[%clk 0:00:09.6]}
47... Qe2+ {[%clk 0:00:09.3]} 1/2-1/2

[Event "Early-Titled-Tuesday-Blitz-February-06-2024"]
[Site "Chess.com"]
[Date "2024.02.06"]
[Round "3"]
[White "DinaBelenkaya"]
[Black "GlavkonVVS"]
[Result "0-1"]
[WhiteElo "2415"]
[BlackElo "2610"]
[TimeControl "180+1"]
[EndTime "8:28:21 PST"]
[Termination "GlavkonVVS won on time"]

1. Nf3 {[%clk 0:02:56.4]} 1... Nf6 {[%clk 0:02:49.7]} 2. g3 {[%clk 0:02:53.3]}
2... g6 {[%clk 0:02:49.5]} 3. Bg2 {[%clk 0:02:49.6]} 3... Bg7 {[%clk 0:02:50.1]}
4. O-O {[%clk 0:02:46.9]} 4... O-O {[%clk 0:02:50.3]} 5. d3 {[%clk 0:02:43.8]}
5... d6 {[%clk 0:02:50.3]} 6. e4 {[%clk 0:02:33]} 6... e5 {[%clk 0:02:49.4]} 7.
Nbd2 {[%clk 0:02:32.7]} 7... h6 {[%clk 0:02:45.2]} 8. Nc4 {[%clk 0:02:32.1]}
8... Be6 {[%clk 0:02:45.3]} 9. Ne3 {[%clk 0:02:31.4]} 9... Nbd7 {[%clk
0:02:37.4]} 10. b3 {[%clk 0:02:31.5]} 10... b5 {[%clk 0:02:34.6]} 11. Bb2 {[%clk
0:02:24.1]} 11... a6 {[%clk 0:02:34.5]} 12. Re1 {[%clk 0:02:11.6]} 12... c5
{[%clk 0:02:34]} 13. Nd2 {[%clk 0:02:10.5]} 13... Nb6 {[%clk 0:02:30.5]} 14. f4
{[%clk 0:02:03.3]} 14... Qc7 {[%clk 0:02:27.3]} 15. f5 {[%clk 0:01:57.7]} 15...
Bd7 {[%clk 0:02:23.9]} 16. g4 {[%clk 0:01:56.6]} 16... g5 {[%clk 0:02:23.2]} 17.
h4 {[%clk 0:01:56.1]} 17... Nh7 {[%clk 0:02:10]} 18. Ndf1 {[%clk 0:01:40.4]}
18... gxh4 {[%clk 0:02:05.7]} 19. Re2 {[%clk 0:01:12.1]} 19... Bf6 {[%clk
0:02:01.2]} 20. Nh2 {[%clk 0:00:58.7]} 20... Kh8 {[%clk 0:01:51.3]} 21. Nf3
{[%clk 0:00:57.7]} 21... Rg8 {[%clk 0:01:51]} 22. Kh2 {[%clk 0:00:53.7]} 22...
Rg7 {[%clk 0:01:46.4]} 23. Qe1 {[%clk 0:00:53.8]} 23... Qd8 {[%clk 0:01:19]} 24.
Bh3 {[%clk 0:00:53.8]} 24... Rc8 {[%clk 0:01:13.9]} 25. Bc1 {[%clk 0:00:53.6]}
25... Bg5 {[%clk 0:01:09.5]} 26. Ng2 {[%clk 0:00:47.4]} 26... c4 {[%clk
0:00:57.6]} 27. Ngxh4 {[%clk 0:00:37.2]} 27... cxd3 {[%clk 0:00:56.7]} 28. cxd3
{[%clk 0:00:38.1]} 28... Rxc1 {[%clk 0:00:50.9]} 29. Rxc1 {[%clk 0:00:39]} 29...
Bf4+ {[%clk 0:00:50.1]} 30. Kh1 {[%clk 0:00:37.9]} 30... Ng5 {[%clk 0:00:39.5]}
31. Rcc2 {[%clk 0:00:26.6]} 31... Nxh3 {[%clk 0:00:37.7]} 32. d4 {[%clk
0:00:22.5]} 32... Rxg4 {[%clk 0:00:34.6]} 33. dxe5 {[%clk 0:00:17.2]} 33... Bxe5
{[%clk 0:00:27.4]} 34. Rcd2 {[%clk 0:00:15]} 34... Qe7 {[%clk 0:00:20.3]} 35.
Rg2 {[%clk 0:00:13.4]} 35... Rxh4 {[%clk 0:00:18.9]} 36. Nxh4 {[%clk 0:00:12.7]}
36... Nf4 {[%clk 0:00:18]} 37. Rh2 {[%clk 0:00:10.6]} 37... Bc6 {[%clk
0:00:17.5]} 38. Nf3 {[%clk 0:00:10.5]} 38... Qf6 {[%clk 0:00:17.1]} 39. Nxe5
{[%clk 0:00:07.2]} 39... dxe5 {[%clk 0:00:17.3]} 40. Qg3 {[%clk 0:00:02.9]}
40... Nd7 {[%clk 0:00:16.4]} 41. Rd1 {[%clk 0:00:01.6]} 41... Bxe4+ {[%clk
0:00:15.9]} 42. Kg1 {[%clk 0:00:01.3]} 42... Nf8 {[%clk 0:00:14]} 43. Kf2 {[%clk
0:00:01.6]} 43... Nd3+ {[%clk 0:00:13.4]} 0-1